bitfinex-derivatives/quotes_BTCF0:USTF0_20241120
["timestamp","ask_amount","ask_price","bid_price","bid_amount"]
[1732092784825,0.46030265,93343.0,93335.0,0.053519]
[1732092785128,0.08036939,93342.0,93336.0,0.053518]
[1732092785329,0.08036939,93341.0,93336.0,0.053518]
[1732092785536,0.3608,93339.0,93333.0,1.55456]
[1732092785836,0.08036939,93338.0,93333.0,1.55352]
[1732092786026,0.08036939,93338.0,93333.0,1.5]
[1732092786337,0.13388639,93338.0,93333.0,1.5]
[1732092786532,0.053518,93337.0,93333.0,1.5]
[1732092786841,0.053519,93335.0,93330.0,0.06868473]
[1732092787719,0.3608,93339.0,93333.0,1.5]
[1732092787923,0.05352,93334.0,93333.0,1.5]
[1732092790037,0.3608,93339.0,93333.0,1.5]
[1732092790337,0.053517,93339.0,93333.0,1.5]
[1732092790526,0.0329,93342.0,93337.0,0.053518]
[1732092790832,0.3608,93344.0,93335.0,0.06868473]
[1732092791030,0.3608,93344.0,93341.0,0.053515]
[1732092792637,0.3608,93344.0,93342.0,0.053515]
[1732092792638,0.41519426,93344.0,93342.0,0.053515]
[1732092793226,0.30009229,93344.0,93342.0,0.053515]
[1732092794134,0.30009229,93344.0,93343.0,0.053514]
[1732092795727,0.05439426,93344.0,93343.0,0.053514]
[1732092795934,0.02143319,93345.0,93344.0,0.053514]
[1732092802042,0.27810333,93345.0,93344.0,0.053514]
[1732092802243,0.36471679,93345.0,93344.0,0.053514]
[1732092802549,0.1826461,93345.0,93344.0,0.053514]
[1732092803839,0.10804665,93345.0,93344.0,0.053514]
[1732092804034,0.02143319,93345.0,93344.0,0.053514]
[1732092804249,0.1826461,93345.0,93344.0,0.12219873]
[1732092804545,0.27810726,93345.0,93344.0,0.12219873]
[1732092804841,0.1826461,93345.0,93344.0,0.12219873]
[1732092805335,0.16121291,93345.0,93344.0,0.12219873]
[1732092807945,0.0326,93357.0,93344.0,0.20605419]
[1732092808148,0.25663126,93352.0,93344.0,0.06868473]
[1732092808340,0.36140001,93358.0,93344.0,0.06868473]
[1732092808341,0.25663126,93353.0,93344.0,0.06868473]
[1732092808547,0.25663126,93353.0,93352.0,0.053509]
[1732092808753,0.414946,93358.0,93344.0,0.06868473]
[1732092808954,0.414306,93358.0,93357.0,0.06868473]
[1732092809653,0.51286094,93358.0,93357.0,0.06868473]
[1732092809845,0.414306,93358.0,93357.0,0.06868473]
[1732092810046,0.3608,93358.0,93357.0,0.06868473]
[1732092810557,0.3608,93358.0,93357.0,0.12219073]
[1732092812055,0.41343945,93358.0,93357.0,0.12219073]
[1732092812261,0.41343945,93358.0,93357.0,0.19087546]
[1732092812957,0.41343945,93358.0,93357.0,0.12219073]
[1732092814255,0.46694545,93358.0,93351.0,0.10268]
[1732092814454,0.46694545,93358.0,93353.0,0.06868473]
[1732092815160,0.41343945,93358.0,93353.0,0.06868473]
[1732092815947,0.41343945,93358.0,93350.0,0.0324]
[1732092816154,0.41343945,93358.0,93352.0,0.06868473]
[1732092816961,0.25658002,93353.0,93352.0,0.06868473]
[1732092817153,0.07998513,93353.0,93352.0,0.06868473]
[1732092817457,0.07998513,93357.0,93352.0,0.06868473]
[1732092817658,0.1785392,93356.0,93352.0,0.06868473]
[1732092817858,0.14888214,93355.0,93352.0,0.06868473]
[1732092818066,0.14888214,93354.0,93352.0,0.06868473]
[1732092818263,0.24743621,93353.0,93352.0,0.06868473]
[1732092818758,0.24735757,93353.0,93352.0,0.06868473]
[1732092818953,0.1488035,93353.0,93352.0,0.06868473]
[1732092819570,0.24735557,93353.0,93352.0,0.06868473]
[1732092820076,0.28868788,93353.0,93352.0,0.06868473]
[1732092820282,0.24735557,93353.0,93352.0,0.06868473]
[1732092820575,0.1488035,93353.0,93352.0,0.06868473]
[1732092822268,0.1488035,93353.0,93352.0,0.12219373]
[1732092822571,0.25669421,93356.0,93353.0,0.053509]
[1732092822772,0.14877621,93355.0,93354.0,0.053508]
[1732092823468,0.14877621,93355.0,93354.0,0.12219273]
[1732092824282,0.03298346,93355.0,93354.0,0.12219273]
[1732092825070,0.05263945,93358.0,93357.0,0.053506]
[1732092825275,0.02141992,93361.0,93358.0,0.053506]
[1732092825872,0.02141992,93361.0,93359.0,0.053505]
[1732092826078,0.02141992,93361.0,93354.0,0.06868473]
[1732092826386,0.05265995,93363.0,93359.0,0.06868473]
[1732092826588,5e-05,93365.0,93362.0,0.053504]
[1732092827477,0.053552,93365.0,93362.0,0.053504]
[1732092828283,5e-05,93365.0,93362.0,0.053504]
[1732092828576,5e-05,93365.0,93359.0,0.06868473]
[1732092828874,5e-05,93365.0,93364.0,0.06868473]
[1732092830289,0.0039106,93366.0,93365.0,0.053502]
[1732092830582,0.0039106,93366.0,93364.0,0.13736946]
[1732092830583,0.02141857,93375.0,93374.0,0.053497]
[1732092831270,0.053493,93381.0,93373.0,0.06868473]
[1732092831271,0.12217773,93381.0,93373.0,0.06868473]
[1732092831475,0.12217773,93381.0,93377.0,0.053495]
[1732092832073,0.28868788,93379.0,93373.0,0.06868473]
[1732092832383,0.177615,93377.0,93376.0,0.053496]
[1732092832581,0.0790826,93377.0,93376.0,0.053496]
[1732092834086,0.06369071,93378.0,93376.0,0.053496]
[1732092834271,0.14648056,93377.0,93376.0,0.053496]
[1732092835589,0.24501296,93377.0,93376.0,0.053496]
[1732092836185,0.24501286,93377.0,93376.0,0.053496]
[1732092836577,0.14648056,93377.0,93376.0,0.053496]
[1732092836774,0.14648056,93377.0,93368.0,0.3608]
[1732092836979,0.25632855,93372.0,93368.0,0.3608]
[1732092837481,0.0094,93378.0,93377.0,0.053495]
[1732092837680,0.0094,93378.0,93377.0,0.12217973]
[1732092838281,0.07595612,93378.0,93377.0,0.12217973]
[1732092838789,0.0094,93378.0,93377.0,0.12217973]
[1732092839477,0.15456327,93378.0,93377.0,0.12217973]
[1732092840087,0.0094,93378.0,93377.0,0.12217973]
[1732092841288,0.0094,93378.0,93377.0,0.053495]
[1732092841675,0.053497,93374.0,93372.0,0.053498]
[1732092841880,0.0094,93378.0,93371.0,0.06868473]
[1732092842077,0.0094,93378.0,93376.0,0.053495]
[1732092843194,0.0094,93378.0,93377.0,0.06868473]
[1732092845589,0.0094,93378.0,93377.0,0.12217973]
[1732092847079,0.07547733,93378.0,93377.0,0.12217973]
[1732092848998,0.22419446,93384.0,93377.0,0.49816946]
[1732092849288,0.58499446,93385.0,93384.0,0.053491]
[1732092849597,0.3608,93385.0,93384.0,0.053491]
[1732092850800,0.3608,93385.0,93384.0,0.19086046]
[1732092851793,0.58499446,93385.0,93384.0,0.19086046]
[1732092851997,0.3608,93385.0,93384.0,0.19086046]
[1732092852886,0.22419446,93387.0,93384.0,0.13736946]
[1732092853086,0.22419446,93388.0,93387.0,0.053489]
[1732092853389,0.22419446,93389.0,93388.0,0.053489]
[1732092853702,0.22419446,93389.0,93385.0,0.06868473]
[1732092853703,0.22419446,93391.0,93390.0,0.053488]
[1732092853990,0.17711828,93391.0,93390.0,0.12217273]
[1732092854397,0.07859934,93391.0,93390.0,0.12217273]
[1732092854991,0.25616908,93392.0,93390.0,0.06868473]
[1732092855292,0.43634157,93398.0,93390.0,0.06868473]
[1732092855293,0.36144,93398.0,93397.0,0.053484]
[1732092855493,0.3608,93398.0,93397.0,0.12216873]
[1732092856199,0.24158119,93398.0,93397.0,0.12216873]
[1732092856798,0.24158119,93398.0,93390.0,0.05291504]
[1732092856996,0.24158119,93398.0,93397.0,0.053484]
[1732092857298,0.24158119,93398.0,93394.0,0.053485]
[1732092857299,0.053485,93395.0,93394.0,0.053485]
[1732092857999,0.05477569,93395.0,93394.0,0.053485]
[1732092858406,0.00129069,93395.0,93394.0,0.053485]
[1732092858592,0.00129069,93395.0,93394.0,0.12216973]
[1732092859893,0.06997542,93395.0,93391.0,1.50112]
[1732092860194,0.053486,93392.0,93391.0,1.5]
[1732092861102,0.05477669,93392.0,93391.0,1.5]
[1732092861403,0.14757669,93392.0,93391.0,1.5]
[1732092862204,0.053495,93377.0,93376.0,0.005]
[1732092862398,0.053496,93375.0,93368.0,0.3608]
[1732092862596,0.053496,93375.0,93368.0,0.4143]
[1732092862913,0.00129069,93372.0,93368.0,0.3608]
[1732092863205,0.00129069,93372.0,93371.0,1.5]
[1732092863397,0.00129069,93372.0,93371.0,1.56868473]
[1732092863998,0.05478869,93372.0,93371.0,1.56868473]
[1732092867105,0.05478869,93372.0,93371.0,1.5]
[1732092867411,0.05478869,93372.0,93371.0,1.56868473]
[1732092867612,0.05478869,93372.0,93371.0,1.5]
[1732092867798,0.14758869,93372.0,93371.0,1.56868473]
[1732092867999,0.50838869,93372.0,93371.0,1.56868473]
[1732092869897,0.50838869,93372.0,93371.0,1.5]
[1732092870098,0.6530758,93372.0,93371.0,1.5]
[1732092871907,0.79879539,93372.0,93371.0,1.5]
[1732092872107,0.57445938,93372.0,93371.0,1.5]
[1732092872809,0.12085938,93372.0,93371.0,1.5]
[1732092873895,0.12131536,93372.0,93371.0,1.5]
[1732092874317,0.06781736,93372.0,93371.0,1.5]
[1732092875201,0.28990116,93372.0,93371.0,1.5]
[1732092875702,0.5354473,93372.0,93371.0,1.5]
[1732092875912,0.1701748,93372.0,93371.0,1.5]
[1732092877001,0.08923233,93372.0,93371.0,1.5]
[1732092877204,0.02316164,93372.0,93371.0,1.5]
[1732092878503,0.07665964,93372.0,93371.0,1.5]
[1732092879104,0.07665964,93372.0,93362.0,0.414304]
[1732092879105,0.053501,93366.0,93362.0,0.3608]
[1732092879307,0.053501,93366.0,93350.0,0.3658]
[1732092879308,0.05351,93351.0,93350.0,0.3658]
[1732092879496,0.05351,93351.0,93350.0,0.3608]
[1732092879497,0.12219473,93351.0,93350.0,0.3608]
[1732092879900,0.12348542,93351.0,93350.0,0.3608]
[1732092880708,0.21628542,93351.0,93350.0,0.3608]
[1732092880909,0.053513,93345.0,93339.0,0.00091]
[1732092881103,0.12219773,93345.0,93339.0,0.00091]
[1732092881306,0.09132,93345.0,93340.0,0.06868473]
[1732092882012,0.09132,93345.0,93340.0,0.053516]
[1732092882013,0.09261069,93345.0,93340.0,0.053516]
[1732092882311,0.09261069,93345.0,93339.0,0.00091]
[1732092882518,0.09261069,93345.0,93344.0,0.36088435]
[1732092883214,0.19544186,93345.0,93344.0,8.435e-05]
[1732092884216,0.19544186,93345.0,93339.0,0.00091]
[1732092884912,0.053516,93340.0,93339.0,0.00091]
[1732092885119,0.05480669,93340.0,93339.0,0.00091]
[1732092885817,0.05480669,93340.0,93324.0,0.3658]
[1732092885818,0.00129069,93340.0,93324.0,0.3658]
[1732092886010,0.00129069,93340.0,93312.0,0.3608]
[1732092886011,0.13968391,93325.0,93318.0,0.005]
[1732092886209,0.00129069,93332.0,93322.0,0.3608]
[1732092886404,0.00129069,93332.0,93330.0,0.053522]
[1732092886606,0.00129069,93332.0,93331.0,0.46363117]
[1732092886908,0.00129069,93332.0,93331.0,0.3608]
[1732092887112,0.00129069,93332.0,93316.0,0.005]
[1732092887113,0.09265069,93332.0,93316.0,0.005]
[1732092887317,0.053527,93322.0,93312.0,0.414332]
[1732092887514,0.09136,93321.0,93312.0,1.8608]
[1732092887707,0.09136,93321.0,93315.0,0.05353]
[1732092888016,0.09136,93321.0,93316.0,0.05353]
[1732092888315,0.00129069,93319.0,93316.0,0.05353]
[1732092888620,0.00129069,93319.0,93317.0,0.053529]
[1732092889328,0.00129069,93318.0,93317.0,0.053529]
[1732092892435,0.00129069,93318.0,93315.0,0.3608]
[1732092892436,0.3608,93363.0,93316.0,0.10283117]
[1732092892604,0.053501,93367.0,93359.0,0.053505]
[1732092892810,0.053501,93367.0,93351.0,0.3608]
[1732092892811,0.02142542,93361.0,93355.0,0.053507]
[1732092893020,0.053505,93360.0,93344.0,0.0378]
[1732092893207,0.0332,93360.0,93351.0,0.05351]
[1732092893911,0.086705,93360.0,93351.0,0.05351]
[1732092894319,0.10283117,93358.0,93351.0,0.05351]
[1732092894521,0.09136,93357.0,93351.0,0.05351]
[1732092896112,0.09136,93357.0,93344.0,0.0328]
[1732092896113,0.09136,93357.0,93352.0,0.053509]
[1732092897024,0.09136,93357.0,93344.0,0.0328]
[1732092897221,0.09136,93357.0,93351.0,0.05351]
[1732092897526,0.09136,93357.0,93352.0,0.053509]
[1732092898011,0.09136,93357.0,93356.0,0.053507]
[1732092898320,0.0332,93360.0,93359.0,0.053505]
[1732092898522,0.12456,93360.0,93359.0,0.053505]
[1732092898911,0.0332,93360.0,93359.0,0.053505]
[1732092899108,0.12456,93360.0,93359.0,0.053505]
[1732092900226,0.19695904,93360.0,93359.0,0.053505]
[1732092900420,0.19695904,93360.0,93348.0,0.3608]
[1732092900421,0.33452899,93360.0,93348.0,0.3608]
[1732092900623,0.22370794,93358.0,93348.0,0.3608]
[1732092900817,0.07239904,93357.0,93348.0,0.3608]
[1732092901018,0.07239904,93356.0,93352.0,0.053509]
[1732092901214,0.07239904,93355.0,93353.0,0.053509]
[1732092901514,0.07239904,93354.0,93353.0,0.053509]
[1732092901714,0.12456,93360.0,93353.0,0.053509]
[1732092901715,0.07239904,93357.0,93353.0,0.053509]
[1732092901914,0.07239904,93356.0,93354.0,0.053508]
[1732092902116,0.07239904,93355.0,93354.0,0.053508]
[1732092903429,0.29610698,93355.0,93354.0,0.053508]
[1732092903633,0.07239904,93355.0,93354.0,0.053508]
[1732092904523,0.07239904,93355.0,93348.0,0.3608]
[1732092904716,0.07239904,93354.0,93350.0,0.05351]
[1732092904925,0.07239904,93353.0,93351.0,0.05351]
[1732092905116,0.3608,93363.0,93348.0,0.3608]
[1732092905117,0.00056001,93371.0,93361.0,0.053504]
[1732092905315,0.00056001,93371.0,93350.0,0.10283117]
[1732092905316,0.07256598,93370.0,93357.0,0.3608]
[1732092905522,0.16392598,93369.0,93357.0,0.3608]
[1732092905715,0.0312,93371.0,93357.0,0.3608]
[1732092905716,0.02141892,93367.0,93365.0,0.053501]
[1732092905921,0.16392598,93366.0,93365.0,0.053501]
[1732092907022,0.07256598,93366.0,93365.0,0.053501]
[1732092907229,0.02141892,93367.0,93365.0,0.053501]
[1732092907736,0.00045598,93372.0,93371.0,0.053498]
[1732092908235,0.09181598,93372.0,93371.0,0.053498]
[1732092908736,0.00045598,93372.0,93371.0,0.053498]
[1732092910738,0.05447367,93377.0,93371.0,0.053498]
[1732092910934,0.02141892,93409.0,93399.0,0.053482]
[1732092911125,0.3608,93414.0,93399.0,0.414282]
[1732092911637,0.3608,93414.0,93399.0,1.914282]
[1732092911833,0.05241746,93411.0,93399.0,1.914282]
[1732092912226,0.09544,93414.0,93399.0,1.914282]
[1732092913128,0.0323,93416.0,93399.0,1.914282]
[1732092913332,0.0501,93400.0,93399.0,1.914282]
[1732092913528,0.0501,93400.0,93399.0,2.009722]
[1732092914031,0.0501,93400.0,93399.0,2.040422]
[1732092914934,0.0501,93400.0,93399.0,1.914282]
[1732092916124,0.05348769,93421.0,93399.0,1.914282]
[1732092916125,0.03539547,93421.0,93399.0,1.8608]
[1732092916322,0.09544,93424.0,93416.0,0.053472]
[1732092916523,0.053471,93420.0,93416.0,0.053472]
[1732092916729,0.053471,93420.0,93417.0,0.053472]
[1732092917129,0.053471,93419.0,93417.0,0.053472]
[1732092918032,0.053469,93423.0,93416.0,0.053472]
[1732092918338,0.09544,93424.0,93408.0,0.3658]
[1732092918542,0.053472,93417.0,93412.0,0.053475]
[1732092918740,0.053469,93423.0,93415.0,0.053473]
[1732092918930,0.09544,93424.0,93418.0,0.053471]
[1732092919236,0.09544,93424.0,93419.0,1.5]
[1732092920543,0.0954,93423.0,93419.0,1.5]
[1732092921831,0.0954,93423.0,93419.0,1.553471]
[1732092922235,0.148869,93423.0,93413.0,0.053474]
[1732092922435,0.16859416,93422.0,93415.0,0.053473]
[1732092922643,0.07319416,93421.0,93415.0,0.053473]
[1732092922844,0.0954,93422.0,93416.0,1.5]
[1732092923045,0.07318887,93421.0,93416.0,1.553473]
[1732092923239,0.0954,93420.0,93416.0,1.553473]
[1732092923746,0.0954,93420.0,93417.0,0.053472]
[1732092924431,0.07288448,93419.0,93417.0,0.053472]
[1732092924631,0.07288448,93418.0,93417.0,0.053472]
[1732092925550,0.0954,93420.0,93417.0,0.053472]
[1732092925737,0.07301353,93419.0,93417.0,0.053472]
[1732092926038,0.0954,93420.0,93417.0,0.053472]
[1732092926237,0.07302246,93419.0,93417.0,0.053472]
[1732092926448,0.0954,93420.0,93417.0,0.053472]
[1732092926746,0.0324,93419.0,93417.0,0.053472]
[1732092926945,0.0324,93419.0,93416.0,1.50112]
[1732092927240,0.053472,93417.0,93416.0,1.5]
[1732092929834,0.12535696,93417.0,93416.0,1.5]
[1732092930449,0.053472,93417.0,93416.0,1.5]
[1732092930837,0.053473,93416.0,93409.0,0.053477]
[1732092931047,0.0308,93415.0,93409.0,0.053477]
[1732092931242,0.084273,93415.0,93409.0,0.053477]
[1732092931443,0.084273,93415.0,93410.0,1.5]
[1732092931838,0.053474,93414.0,93410.0,1.5]
[1732092934148,0.0308,93415.0,93401.0,0.005]
[1732092934149,0.0954,93413.0,93401.0,0.005]
[1732092934346,0.053484,93396.0,93395.0,0.005]
[1732092934548,0.053492,93383.0,93381.0,0.3608]
[1732092934744,0.053492,93382.0,93381.0,0.3608]
[1732092935051,0.0954,93382.0,93379.0,0.053494]
[1732092936343,0.0954,93382.0,93371.0,0.10283117]
[1732092936746,0.0954,93382.0,93378.0,0.053494]
[1732092936949,0.0954,93382.0,93371.0,0.10283117]
[1732092937243,0.0954,93382.0,93379.0,0.053494]
[1732092937544,0.0954,93382.0,93371.0,0.10283117]
[1732092937545,0.0954,93382.0,93374.0,0.053496]
[1732092937957,0.0954,93382.0,93375.0,0.053496]
[1732092938245,0.0954,93382.0,93376.0,0.053495]
[1732092938438,0.053493,93381.0,93370.0,0.053499]
[1732092938638,0.0954,93382.0,93368.0,0.3608]
[1732092938639,0.053493,93380.0,93368.0,0.3608]
[1732092938839,0.053493,93380.0,93373.0,0.053497]
[1732092939449,0.0954,93382.0,93374.0,0.053496]
[1732092939942,0.0954,93382.0,93375.0,0.053496]
[1732092940450,0.0954,93382.0,93376.0,0.053495]
[1732092941348,0.0954,93382.0,93377.0,0.053495]
[1732092942655,0.0954,93382.0,93378.0,1.5]
[1732092943042,0.0954,93382.0,93378.0,1.553494]
[1732092943245,0.09116,93381.0,93379.0,0.053494]
[1732092943551,0.09116,93381.0,93378.0,1.5]
[1732092943552,0.09116,93386.0,93378.0,1.50104]
[1732092943749,0.09116,93385.0,93383.0,0.053491]
[1732092944251,0.09116,93384.0,93383.0,0.053492]
[1732092945149,0.053486,93392.0,93378.0,1.50104]
[1732092945150,0.053486,93392.0,93384.0,0.053491]
[1732092945355,0.09116,93391.0,93384.0,0.053491]
[1732092946955,0.02141442,93385.0,93384.0,0.053491]
[1732092948051,0.14661273,93395.0,93384.0,0.3608]
[1732092948254,0.14661273,93395.0,93384.0,0.46363117]
[1732092948255,0.05371273,93395.0,93384.0,0.46363117]
[1732092948457,0.3608,93405.0,93387.0,0.053489]
[1732092948756,0.3608,93405.0,93401.0,0.053481]
[1732092949054,0.41440566,93405.0,93401.0,1.553481]
[1732092949848,0.46788466,93405.0,93401.0,1.5]
[1732092950953,0.46788466,93405.0,93398.0,0.053483]
[1732092952651,0.02141343,93402.0,93398.0,0.053483]
[1732092956862,0.02141343,93402.0,93399.0,1.5]
[1732092960460,0.27771039,93402.0,93399.0,1.5]
[1732092960669,0.41261013,93400.0,93399.0,1.5]
[1732092960960,0.31159384,93400.0,93399.0,1.5]
[1732092961157,0.41010784,93400.0,93399.0,1.5]
[1732092961359,0.69826233,93400.0,93399.0,1.5]
[1732092961862,0.41010784,93400.0,93399.0,1.5]
[1732092962760,0.41010784,93400.0,93388.0,0.005]
[1732092962761,0.053488,93389.0,93388.0,0.005]
[1732092962969,0.27741747,93389.0,93377.0,0.005]
[1732092963156,0.25638571,93383.0,93378.0,1.5]
[1732092963356,0.20877267,93382.0,93378.0,1.5]
[1732092963560,0.3419196,93382.0,93378.0,1.5]
[1732092963757,0.25380679,93381.0,93378.0,1.5]
[1732092963954,0.18195242,93381.0,93378.0,1.5]
[1732092964157,0.15698832,93380.0,93378.0,1.5]
[1732092964356,0.15698832,93379.0,93378.0,1.5]
[1732092964556,0.2555143,93379.0,93374.0,0.3608]
[1732092964756,0.053496,93375.0,93374.0,0.3608]
[1732092964967,0.44951083,93375.0,93365.0,0.005]
[1732092965167,0.053501,93368.0,93366.0,1.5]
[1732092965464,0.0639,93367.0,93366.0,1.5]
[1732092965668,0.16694457,93367.0,93366.0,1.5]
[1732092965964,0.34982574,93367.0,93359.0,0.005]
[1732092966165,0.28845742,93365.0,93354.0,0.3608]
[1732092966465,0.2242753,93355.0,93354.0,0.3608]
[1732092966671,0.29691987,93355.0,93354.0,0.3608]
[1732092966965,0.29691987,93355.0,93350.0,0.05364178]
[1732092966966,0.29691987,93355.0,93350.0,1.50013178]
[1732092967155,0.10283117,93351.0,93343.0,0.005]
[1732092967356,0.22428507,93347.0,93338.0,0.005]
[1732092967560,0.10283117,93351.0,93338.0,0.005]
[1732092967561,0.10283117,93351.0,93340.0,0.053516]
[1732092967766,0.053511,93349.0,93340.0,0.053516]
[1732092968066,0.053513,93345.0,93338.0,0.005]
[1732092968265,0.053518,93337.0,93333.0,0.005]
[1732092968570,0.053518,93337.0,93326.0,0.3662]
[1732092968571,0.05352,93333.0,93327.0,0.0089]
[1732092968874,0.14468,93333.0,93327.0,0.0039]
[1732092969173,0.053521,93332.0,93327.0,0.0039]
[1732092969868,0.053523,93329.0,93327.0,0.0039]
[1732092970060,0.09116,93328.0,93327.0,0.0039]
[1732092973171,0.46363117,93331.0,93327.0,0.0039]
[1732092973368,0.09116,93330.0,93327.0,0.0039]
[1732092974363,0.09116,93329.0,93327.0,0.0039]
[1732092975171,0.09116,93328.0,93327.0,0.0039]
[1732092978458,0.07583712,93333.0,93327.0,0.0039]
[1732092978664,0.09116,93332.0,93327.0,0.0039]
[1732092980865,0.09116,93331.0,93327.0,0.0039]
[1732092981267,0.053522,93330.0,93327.0,0.0039]
[1732092981466,0.053523,93329.0,93327.0,0.0039]
[1732092986175,0.55479117,93331.0,93327.0,0.0039]
[1732092986376,0.053523,93328.0,93327.0,0.0039]
[1732092986579,0.144723,93328.0,93327.0,0.0039]
[1732092987082,0.053523,93328.0,93327.0,0.0039]
[1732092987377,0.144723,93328.0,93327.0,0.0039]
[1732092989472,0.24755417,93328.0,93327.0,0.0039]
[1732092989674,0.053529,93317.0,93305.0,0.19040156]
[1732092989975,0.053537,93304.0,93302.0,0.005]
[1732092990175,0.053539,93301.0,93300.0,0.1]
[1732092991880,0.005,93312.0,93300.0,0.1]
[1732092992073,0.005,93317.0,93316.0,0.05353]
[1732092992277,0.005,93328.0,93326.0,0.053524]
[1732092992470,0.005,93338.0,93337.0,0.053518]
[1732092992674,0.3608,93339.0,93337.0,0.053518]
[1732092993271,0.05384128,93340.0,93337.0,0.053518]
[1732092993475,0.11262091,93345.0,93337.0,0.053518]
[1732092993680,0.02142091,93345.0,93337.0,0.053518]
[1732092993887,0.02142091,93345.0,93336.0,0.3608]
[1732092994102,0.0323,93348.0,93344.0,0.053514]
[1732092994789,0.0323,93348.0,93346.0,0.053512]
[1732092996688,0.005,93357.0,93344.0,0.3608]
[1732092996995,0.005,93357.0,93345.0,0.053513]
[1732092996996,0.16525855,93356.0,93345.0,0.053513]
[1732092997183,0.0912,93356.0,93351.0,0.05351]
[1732092998287,0.0912,93356.0,93344.0,0.3608]
[1732092998484,0.0912,93356.0,93353.0,0.053509]
[1732092998988,0.0316,93358.0,93353.0,0.053509]
[1732092999183,0.0912,93357.0,93353.0,0.053509]
[1732092999382,0.0912,93357.0,93344.0,0.3608]
[1732092999383,0.0912,93357.0,93355.0,0.053507]
[1732093001583,0.0316,93358.0,93355.0,0.053507]
[1732093001889,0.09108,93357.0,93355.0,0.053507]
[1732093002089,0.10283117,93356.0,93344.0,0.414313]
[1732093002276,0.10283117,93349.0,93344.0,0.414313]
[1732093003009,0.10283117,93349.0,93344.0,0.3608]
[1732093003290,0.053514,93344.0,93336.0,0.005]
[1732093003587,0.053514,93344.0,93321.0,0.19040156]
[1732093003588,0.053532,93314.0,93299.0,0.55120156]
[1732093003886,0.15458,93313.0,93305.0,0.053536]
[1732093004091,0.0635,93313.0,93305.0,0.053536]
[1732093004479,0.0635,93313.0,93302.0,0.053538]
[1732093004786,0.0635,93313.0,93306.0,0.053535]
[1732093004980,0.0635,93313.0,93295.0,0.3608]
[1732093005181,0.0635,93313.0,93273.0,0.005]
[1732093005182,0.005,93318.0,93312.0,0.3608]
[1732093005410,0.033,93320.0,93317.0,0.053529]
[1732093005879,0.033,93320.0,93318.0,0.053529]
[1732093006192,0.00886644,93324.0,93312.0,0.3608]
[1732093006486,0.09108,93327.0,93321.0,0.053527]
[1732093007089,0.144604,93327.0,93321.0,0.053527]
[1732093009200,0.09108,93327.0,93312.0,0.3608]
[1732093009387,0.053526,93323.0,93314.0,0.053531]
[1732093009582,0.10283117,93321.0,93312.0,0.3608]
[1732093009793,0.10283117,93314.0,93312.0,0.3608]
[1732093010385,0.005,93324.0,93312.0,0.3608]
[1732093010590,0.02142101,93322.0,93319.0,0.053528]
[1732093010897,0.02142101,93322.0,93321.0,0.053527]
[1732093011102,0.0318,93321.0,93303.0,0.19040156]
[1732093011288,0.10283117,93306.0,93301.0,0.053539]
[1732093011787,0.10283117,93306.0,93282.0,0.053549]
[1732093011788,0.053544,93291.0,93290.0,0.00104]
[1732093011981,0.053544,93291.0,93261.0,0.3608]
[1732093011982,0.053547,93286.0,93275.0,0.053553]
[1732093012188,0.19391117,93291.0,93273.0,0.05417616]
[1732093012189,0.064,93290.0,93273.0,0.05417616]
[1732093012391,0.053546,93289.0,93278.0,0.053552]
[1732093012692,0.053547,93287.0,93278.0,0.053552]
[1732093013402,0.4248,93290.0,93272.0,1.8608]
[1732093013605,0.4248,93290.0,93272.0,1.914355]
[1732093013606,0.053548,93285.0,93272.0,1.914355]
[1732093013790,0.053548,93285.0,93273.0,0.053554]
[1732093015603,0.150108,93285.0,93273.0,0.053554]
[1732093017092,0.42536001,93290.0,93289.0,0.053545]
[1732093017093,0.00056001,93290.0,93289.0,0.053545]
[1732093017299,0.0219974,93302.0,93290.0,0.053545]
[1732093017504,0.005,93301.0,93295.0,0.3608]
[1732093017699,0.0301,93301.0,93295.0,0.3608]
[1732093018893,0.09656,93300.0,93295.0,0.3608]
[1732093019290,0.05354,93299.0,93284.0,9.571e-05]
[1732093019801,0.05354,93299.0,93286.0,0.053547]
[1732093021008,0.10283117,93294.0,93285.0,0.3608]
[1732093021603,0.10783117,93301.0,93300.0,0.053539]
[1732093021808,0.02143739,93302.0,93300.0,0.414339]
[1732093021997,0.02143739,93302.0,93300.0,0.3608]
[1732093022194,0.0306,93301.0,93300.0,0.3608]
[1732093023093,0.0306,93301.0,93297.0,0.053541]
[1732093025299,0.13343117,93301.0,93297.0,0.053541]
[1732093026601,0.0306,93301.0,93297.0,0.053541]
[1732093027107,0.0306,93301.0,93299.0,0.05354]
[1732093027696,0.09656,93300.0,93299.0,0.05354]
[1732093028208,0.02393739,93317.0,93296.0,0.053541]
[1732093028400,0.09656,93310.0,93309.0,0.053534]
[1732093028594,0.0305,93316.0,93304.0,0.3608]
[1732093028595,0.0305,93316.0,93315.0,0.053531]
[1732093028803,0.12706,93316.0,93315.0,0.053531]
[1732093029000,0.0305,93316.0,93315.0,0.053531]
[1732093029200,0.12706,93316.0,93315.0,0.053531]
[1732093030299,0.12706,93316.0,93313.0,0.3608]
[1732093030300,0.0361,93326.0,93324.0,0.053525]
[1732093030608,0.0361,93326.0,93313.0,0.3608]
[1732093030609,0.09656,93325.0,93313.0,0.3608]
[1732093030809,0.150085,93324.0,93320.0,0.053528]
[1732093031609,0.09656,93324.0,93320.0,0.053528]
[1732093031906,0.0311,93326.0,93313.0,0.3608]
[1732093032111,0.005,93330.0,93325.0,0.46363117]
[1732093032301,0.0025,93344.0,93343.0,0.053514]
[1732093032501,0.02143739,93347.0,93326.0,0.0312]
[1732093032502,0.02143739,93347.0,93346.0,0.053513]
[1732093033200,0.11799739,93347.0,93346.0,0.053513]
[1732093033602,0.09656,93347.0,93346.0,0.053513]
[1732093034100,0.053508,93354.0,93346.0,0.053513]